{"text_format":"3","workbook":"xlsx","n_sheets":6,"sheets":["SEMESTRIS","KREDĪTPUNKTI","BUDŽETS","NETO IKMĒNEŠA IZDEVUMI","SEMESTRA IZDEVUMI","GRĀMATAS"],"not_rendered":{"defined_names":21},"read":"whole","date_system":"1900"}

{"sheet":"SEMESTRIS","index":0,"n_rows":29,"n_cols":9,"rows_kept":29,"merged":[[2,3,2,4]]}
[null,"MANS NODARBĪBU GRAFIKS"]
[null,"RUDENS SEMESTRIS"]
[null,null,"SĀKUMA LAIKS","LAIKA INTERVĀLS",null,"GADS"]
[null,null,"09:00:00",60,"(minūtēs)"]
[null,"LAIKS ","PIRMDIENA","OTRDIENA","TREŠDIENA","CETURTDIENA","PIEKTDIENA","SESTDIENA","SVĒTDIENA"]
[null,{"$f":"SākumaLaiks+TIME(0,(ROW(A1)-1)*LaikaIntervāls,0)","v":"09:00:00"},"Brokastis","Brokastis","Brokastis","Brokastis","Brokastis"]
[null,"10:00:00","Uzņēmējdarbības vadība: lekcija B korpusā, 256. telpā"]
[null,"11:00:00",{"$nulls":3},"Fizika: laboratorijas darbs \nJ korpusā, 309. telpā"]
[null,"12:00:00"]
[null,"13:00:00"]
[null,"14:00:00"]
[null,"15:00:00"]
[null,"16:00:00"]
[null,"17:00:00"]
[null,"18:00:00"]
[null,"19:00:00"]
[null,"20:00:00"]
[null,"21:00:00"]
[null,"22:00:00"]
[null,"23:00:00"]
[null,1]
[null,1.0416666666666665]
[null,1.0833333333333335]
[null,1.125]
[null,1.1666666666666665]
[null,1.2083333333333335]
[null,1.25]
[null,1.2916666666666665]
[null,1.3333333333333335]

{"sheet":"KREDĪTPUNKTI","index":1,"n_rows":17,"n_cols":8,"rows_kept":17}
[null,"STUDIJU"]
[null,"KREDĪTPUNKTU PLĀNOTĀJS"]
[null,"Akadēmiskā grāda nosaukums",{"$f":"Gads","v":"GADS"}]
[null,"VISPĀRĒJAIS PROGRESS",null,"VISPĀRĒJAIS PROGRESS"]
[null,{"$f":"AVERAGE(Mācību_priekšmeti[NOVĒRTĒJUMS])","v":3.5},{"$f":"IFERROR(TEXT(AVERAGEIF(Mācību_priekšmeti[PABEIGTS],\"Jā\",Mācību_priekšmeti[NOVĒRTĒJUMS]),\"0,00\"),\"0,00\")&\" Pašreizējā vidējā atzīme\"","v":"3,50 Pašreizējā vidējā atzīme"},{"$f":"COUNTIF(Mācību_priekšmeti[PABEIGTS],\"Jā\")/COUNTA(Mācību_priekšmeti[MĀCĪBU PRIEKŠMETA NOSAUKUMS])","v":0.6666666666666666},{"$f":"TEXT(COUNTIF(Mācību_priekšmeti[PABEIGTS],\"Jā\")/COUNTA(Mācību_priekšmeti[MĀCĪBU PRIEKŠMETA NOSAUKUMS]),\"0%\")&\" pabeigti\"","v":"67% pabeigti"}]
[null,"Piezīme. Šis kredītpunktu kopsavilkums tiek automātiski aizpildīts ar vērtībām, ko ievadāt tālāk pieejamajā tabulā Augstskolas mācību priekšmeti"]
[null,"PRASĪBA","KREDĪTPUNKTU KOPSKAITS","IEGŪTI","NEPIECIEŠAMS"]
[null,"A grupas mācību priekšmets",{"$f":"IF(SUMIF(Mācību_priekšmeti[NEPIECIEŠAMS],KREDĪTPUNKTI!$B8,Mācību_priekšmeti[KREDĪTPUNKTI])=0,\"0\",SUMIF(Mācību_priekšmeti[NEPIECIEŠAMS],KREDĪTPUNKTI!$B8,Mācību_priekšmeti[KREDĪTPUNKTI]))","v":4},{"$f":"SUMIFS(Mācību_priekšmeti[KREDĪTPUNKTI],Mācību_priekšmeti[NEPIECIEŠAMS],KREDĪTPUNKTI!$B8,Mācību_priekšmeti[PABEIGTS],\"Jā\")","v":4},{"$f":"SUMIF(Mācību_priekšmeti[NEPIECIEŠAMS],KREDĪTPUNKTI!$B8,Mācību_priekšmeti[KREDĪTPUNKTI])-SUMIFS(Mācību_priekšmeti[KREDĪTPUNKTI],Mācību_priekšmeti[NEPIECIEŠAMS],KREDĪTPUNKTI!$B8,Mācību_priekšmeti[PABEIGTS],\"Jā\")","v":0}]
[null,"B grupas mācību priekšmets",{"$f":"IF(SUMIF(Mācību_priekšmeti[NEPIECIEŠAMS],KREDĪTPUNKTI!$B9,Mācību_priekšmeti[KREDĪTPUNKTI])=0,\"0\",SUMIF(Mācību_priekšmeti[NEPIECIEŠAMS],KREDĪTPUNKTI!$B9,Mācību_priekšmeti[KREDĪTPUNKTI]))","v":3},{"$f":"SUMIFS(Mācību_priekšmeti[KREDĪTPUNKTI],Mācību_priekšmeti[NEPIECIEŠAMS],KREDĪTPUNKTI!$B9,Mācību_priekšmeti[PABEIGTS],\"Jā\")","v":0},{"$f":"SUMIF(Mācību_priekšmeti[NEPIECIEŠAMS],KREDĪTPUNKTI!$B9,Mācību_priekšmeti[KREDĪTPUNKTI])-SUMIFS(Mācību_priekšmeti[KREDĪTPUNKTI],Mācību_priekšmeti[NEPIECIEŠAMS],KREDĪTPUNKTI!$B9,Mācību_priekšmeti[PABEIGTS],\"Jā\")","v":3}]
[null,"C grupas mācību priekšmets",{"$f":"IF(SUMIF(Mācību_priekšmeti[NEPIECIEŠAMS],KREDĪTPUNKTI!$B10,Mācību_priekšmeti[KREDĪTPUNKTI])=0,\"0\",SUMIF(Mācību_priekšmeti[NEPIECIEŠAMS],KREDĪTPUNKTI!$B10,Mācību_priekšmeti[KREDĪTPUNKTI]))","v":2},{"$f":"SUMIFS(Mācību_priekšmeti[KREDĪTPUNKTI],Mācību_priekšmeti[NEPIECIEŠAMS],KREDĪTPUNKTI!$B10,Mācību_priekšmeti[PABEIGTS],\"Jā\")","v":2},{"$f":"SUMIF(Mācību_priekšmeti[NEPIECIEŠAMS],KREDĪTPUNKTI!$B10,Mācību_priekšmeti[KREDĪTPUNKTI])-SUMIFS(Mācību_priekšmeti[KREDĪTPUNKTI],Mācību_priekšmeti[NEPIECIEŠAMS],KREDĪTPUNKTI!$B10,Mācību_priekšmeti[PABEIGTS],\"Jā\")","v":0}]
[null,"Vispārīgie mācību priekšmeti",{"$f":"IF(SUMIF(Mācību_priekšmeti[NEPIECIEŠAMS],KREDĪTPUNKTI!$B11,Mācību_priekšmeti[KREDĪTPUNKTI])=0,\"0\",SUMIF(Mācību_priekšmeti[NEPIECIEŠAMS],KREDĪTPUNKTI!$B11,Mācību_priekšmeti[KREDĪTPUNKTI]))","v":"0"},{"$f":"SUMIFS(Mācību_priekšmeti[KREDĪTPUNKTI],Mācību_priekšmeti[NEPIECIEŠAMS],KREDĪTPUNKTI!$B11,Mācību_priekšmeti[PABEIGTS],\"Jā\")","v":0},{"$f":"SUMIF(Mācību_priekšmeti[NEPIECIEŠAMS],KREDĪTPUNKTI!$B11,Mācību_priekšmeti[KREDĪTPUNKTI])-SUMIFS(Mācību_priekšmeti[KREDĪTPUNKTI],Mācību_priekšmeti[NEPIECIEŠAMS],KREDĪTPUNKTI!$B11,Mācību_priekšmeti[PABEIGTS],\"Jā\")","v":0}]
[null,"Kopā",{"$f":"SUBTOTAL(109,KREDĪTPUNKTI!$C$8:$C$11)","v":9},{"$f":"SUBTOTAL(109,KREDĪTPUNKTI!$D$8:$D$11)","v":6},{"$f":"SUBTOTAL(109,KREDĪTPUNKTI!$E$8:$E$11)","v":3}]
[null,"Mācību_priekšmeti"]
[null,"MĀCĪBU PRIEKŠMETA NOSAUKUMS","MĀCĪBU PRIEKŠMETA NR.","NEPIECIEŠAMS","KREDĪTPUNKTI","PABEIGTS","NOVĒRTĒJUMS","SEMESTRIS"]
[null,"1. mācību priekšmets","Numurs","A grupas mācību priekšmets",4,"Jā",{"v":4,"d":"4.0"},"1. SEMESTRIS"]
[null,"2. mācību priekšmets","Numurs","B grupas mācību priekšmets",3,"Nē",null,"1. SEMESTRIS"]
[null,"3. mācību priekšmets","Numurs","C grupas mācību priekšmets",2,"Jā",{"v":3,"d":"3.0"},"1. SEMESTRIS"]

{"sheet":"BUDŽETS","index":2,"n_rows":15,"n_cols":4,"rows_kept":15}
[null,{"$f":"Augstskola","v":"STUDIJU"}]
[null,"BUDŽETA ŽURNĀLS"]
[null,"Mans budžets",{"$f":"Gads","v":"GADS"}]
[null,"IZTĒRĒTIE IENĀKUMI PROCENTOS"]
[null,{"$f":"NETO_IKMĒNEŠA_IZDEVUMI/NETO_IKMĒNEŠA_IENĀKUMI","v":{"v":0.7454545454545455,"d":"75%"}}]
[null,{"$f":"B5","v":0.7454545454545455}]
[null,"NETO IKMĒNEŠA IENĀKUMI","NETO IKMĒNEŠA IZDEVUMI","BILANCE"]
[null,{"$f":"C10","v":{"v":2750,"d":"2,750 EUR"}},{"$f":"'NETO IKMĒNEŠA IZDEVUMI'!C4+'SEMESTRA IZDEVUMI'!D4","v":{"v":2050,"d":"2,050 EUR"}},{"$f":"NETO_IKMĒNEŠA_IENĀKUMI-NETO_IKMĒNEŠA_IZDEVUMI","v":{"v":700,"d":"700 EUR"}}]
[null,"Semestra mēneši",4]
[null,"IKMĒNEŠA IENĀKUMI",{"$f":"SUM(IkmēnešaIenākumi[SUMMA])","v":{"v":2750,"d":"2,750 EUR"}}]
[null,"PRECE","SUMMA"]
[null,"Fiksētie ienākumi",{"v":1500,"d":"1,500 EUR"}]
[null,"Pabalsti",{"v":500,"d":"500 EUR"}]
[null,"Aizdevumi",{"v":500,"d":"500 EUR"}]
[null,"Citi ienākumi",{"v":250,"d":"250 EUR"}]

{"sheet":"NETO IKMĒNEŠA IZDEVUMI","index":3,"n_rows":15,"n_cols":3,"rows_kept":15}
[null,{"$f":"Augstskola","v":"STUDIJU"}]
[null,"BUDŽETA ŽURNĀLS"]
[null,"Ikmēneša izdevumi",{"$f":"Gads","v":"GADS"}]
[null,"IKMĒNEŠA IZDEVUMI",{"$f":"SUM(IkmēnešaIzdevumi[SUMMA])","v":{"v":1675,"d":"1,675 EUR"}}]
[null,"PRECE","SUMMA"]
[null,"Īres maksa",{"v":300,"d":"300 EUR"}]
[null,"Komunālie pakalpojumi",{"v":50,"d":"50 EUR"}]
[null,"Mobilais tālrunis",{"v":75,"d":"75 EUR"}]
[null,"Pārtikas preces",{"v":250,"d":"250 EUR"}]
[null,"Auto izdevumi",{"v":50,"d":"50 EUR"}]
[null,"Studiju kredīti",{"v":500,"d":"500 EUR"}]
[null,"Kredītkartes",{"v":275,"d":"275 EUR"}]
[null,"Apdrošināšana",{"v":125,"d":"125 EUR"}]
[null,"Izklaide",{"v":50,"d":"50 EUR"}]
[null,"Dažādi",{"v":0,"d":"0 EUR"}]

{"sheet":"SEMESTRA IZDEVUMI","index":4,"n_rows":11,"n_cols":4,"rows_kept":11}
[null,{"$f":"Augstskola","v":"STUDIJU"}]
[null,"BUDŽETA ŽURNĀLS"]
[null,"Semestra izdevumi",{"$f":"Gads","v":"GADS"}]
[null,"SEMESTRA IZDEVUMI (kopā/mēnesī)",{"$f":"SUM(SemestraIzdevumi[SUMMA])","v":{"v":1500,"d":"1,500 EUR"}},{"$f":"SUM(SemestraIzdevumi[MĒNESĪ])","v":{"v":375,"d":"375 EUR"}}]
[null,"VIENUMS","SUMMA","MĒNESĪ"]
[null,"Mācību maksa",{"v":750,"d":"750 EUR"},{"$f":"SemestraIzdevumi[[#This Row],[SUMMA]]/Semestra_mēneši","v":{"v":187.5,"d":"188 EUR"}}]
[null,"Laboratorijas maksa",{"v":250,"d":"250 EUR"},{"$f":"SemestraIzdevumi[[#This Row],[SUMMA]]/Semestra_mēneši","v":{"v":62.5,"d":"63 EUR"}}]
[null,"Grāmatas",{"v":500,"d":"500 EUR"},{"$f":"SemestraIzdevumi[[#This Row],[SUMMA]]/Semestra_mēneši","v":{"v":125,"d":"125 EUR"}}]
[null,"Noguldījumi",{"v":0,"d":"0 EUR"},{"$f":"SemestraIzdevumi[[#This Row],[SUMMA]]/Semestra_mēneši","v":{"v":0,"d":"0 EUR"}}]
[null,"Transports",{"v":0,"d":"0 EUR"},{"$f":"SemestraIzdevumi[[#This Row],[SUMMA]]/Semestra_mēneši","v":{"v":0,"d":"0 EUR"}}]
[null,"Citi maksājumi",{"v":0,"d":"0 EUR"},{"$f":"SemestraIzdevumi[[#This Row],[SUMMA]]/Semestra_mēneši","v":{"v":0,"d":"0 EUR"}}]

{"sheet":"GRĀMATAS","index":5,"n_rows":7,"n_cols":7,"rows_kept":7}
[null,{"$f":"Augstskola","v":"STUDIJU"}]
[null,"GRĀMATU ŽURNĀLS"]
[null,"Grāmatu saraksts"]
[null,"NOSAUKUMS","AUTORS","MĀCĪBU PRIEKŠMETS","KUR IEGĀDĀTIES?","ISBN","PIEZĪMES"]
[null,"Grāmatas nosaukums","Autors","Mācību priekšmets","Atrašanās vieta","Numurs"]
[null,"Grāmatas nosaukums","Autors","Mācību priekšmets","Atrašanās vieta","Numurs"]
[null,"Grāmatas nosaukums","Autors","Mācību priekšmets","Atrašanās vieta","Numurs"]